fUSD/lending_fUSD_20240717
["ID","MTS","AMOUNT","RATE_DAILY","PERIOD"]
[332471993,1721218233450,-167.09041193,0.00018686,2]
[332471994,1721218233460,-419.00943635,0.00018696,2]
[332471995,1721218233470,-1257.0,0.000187,2]
[332471996,1721218233480,-2229.20233731,0.00018721,2]
[332471997,1721218233489,-459.37,0.00018733,2]
[332471998,1721218233500,-151.90694189,0.00018754,2]
[332471999,1721218233510,-152.64471479,0.00018804,2]
[332472000,1721218233519,-4047.29017287,0.00018809,2]
[332472001,1721218233528,-19673.28984762,0.0001881,2]
[332472002,1721218233538,-500.0,0.0001881,2]
[332472003,1721218233547,-2540.67777155,0.00018821,2]
[332472004,1721218233556,-166.66666668,0.00018839,2]
[332472005,1721218233566,-200.0,0.00018848,2]
[332472006,1721218233576,-268.52,0.00018849,30]
[332472007,1721218233585,-616.67689347,0.00018864,2]
[332472008,1721218233595,-288.191,0.00018878,2]
[332472009,1721218233604,-150.0,0.00018878,2]
[332472010,1721218233615,-150.0,0.00018878,2]
[332472011,1721218233624,-1252.0,0.00018878,2]
[332472012,1721218233634,-361.0,0.00018878,2]
[332472013,1721218233644,-1661.0,0.00018878,2]
[332472014,1721218233654,-1829.0,0.00018878,2]
[332472015,1721218233664,-450.0,0.00018878,2]
[332472016,1721218233673,-619.0,0.00018878,2]
[332472017,1721218233683,-445.0,0.00018878,2]
[332472018,1721218233694,-150.0,0.00018878,2]
[332472019,1721218233703,-19439.92788138,0.00018899,2]
[332472020,1721218233713,-536.0,0.00018899,2]
[332472021,1721218233723,-53388.0361,0.000189,2]
[332472022,1721218233733,-11307.17370959,0.000189,2]
[332472023,1721218233746,-1331.32137545,0.000189,2]
[332472024,1721218233759,-3182.66143813,0.000189,2]
[332472025,1721218233770,-23719.17217683,0.000189,2]
[332472026,1721218233780,-68480.5876,0.000189,2]
[332472027,1721218233790,-161.16502464,0.000189,2]
[332472028,1721218233800,-5000.0,0.000189,2]
[332472029,1721218233809,-716.75621518,0.000189,2]
[332472030,1721218233819,-829.93988749,0.000189,2]
[332472031,1721218233829,-247.252615,0.00018904,2]
[332472032,1721218233838,-427.00309723,0.00018945,2]
[332472033,1721218233848,-151.90694189,0.00018949,2]
[332472034,1721218233858,-161.57771743,0.0001899,2]
[332472035,1721218234075,-161.57771743,0.0001899,2]
[332472036,1721218234162,-1452.32363972,0.00018999,2]
[332472037,1721218234172,-2000.0,0.00018999,2]
[332472038,1721218234181,-200.0,0.00018999,2]
[332472039,1721218234191,-500.0,0.00018999,2]
[332472040,1721218234200,-199.46173743,0.00018999,2]
[332472041,1721218234210,-645.63757263,0.00018999,2]
[332472042,1721218234219,-239.42980738,0.00018999,2]
[332472043,1721218234228,-500.0,0.00018999,2]
[332472044,1721218234237,-41789.25085727,0.00019,7]
[332472045,1721218234250,-21933.11821038,0.00019,7]
[332472046,1721218234261,-965.41908988,0.00019,7]
[332472047,1721218234272,-346.48303694,0.00019,7]
[332472048,1721218234284,-3971.07024,0.00019,7]
[332472049,1721218234295,-3832.64287863,0.00019,7]
[332472050,1721218234306,-14198.30525229,0.00019,7]
[332472051,1721218234318,-46200.68907466,0.00019,7]
[332472052,1721218234343,-500.0,0.00018998,2]
[332472053,1721218234353,-500.0,0.00018998,2]
[332472054,1721218234363,-732024.16150532,0.00019,7]
[332472055,1721218234373,-190447.89834472,0.00019,2]
[332472056,1721218234385,-2167.0181534,0.00019,2]
[332472057,1721218234415,-250.33780553,0.00018998,2]
[332472058,1721218234426,-249.66219447,0.00018998,2]
[332472059,1721218234436,-385.52510786,0.00018998,2]
[332472060,1721218234445,-369.166515,0.00018998,2]
[332472061,1721218234456,-130.833485,0.00018998,2]
[332472062,1721218234466,-33471.11414321,0.00019,2]
[332472067,1721218237847,-358.48667185,0.00018998,2]
[332472068,1721218237955,-141.51332815,0.00018998,2]
[332472069,1721218237964,-500.0,0.00018998,2]
[332472070,1721218237973,-500.0,0.00018998,2]
[332472071,1721218237983,-500.0,0.00018998,2]
[332472072,1721218237992,-500.0,0.00018998,2]
[332472073,1721218238002,-541.49820859,0.00018998,2]
[332472074,1721218238012,-500.0,0.00018998,2]
[332472075,1721218238021,-500.0,0.00018998,2]
[332472076,1721218238030,-500.0,0.00018998,2]
[332472077,1721218238039,-500.0,0.00018998,2]
[332472078,1721218238048,-500.0,0.00018998,2]
[332472079,1721218238057,-500.0,0.00018998,2]
[332472080,1721218238066,-500.0,0.00018998,2]
[332472081,1721218238075,-726.16181986,0.00018999,2]
[332472082,1721218238084,-2972.81886826,0.00019,2]
[332472083,1721218238095,-7768.1384,0.00019,2]
[332472084,1721218238107,-7146.2938,0.00019,2]
[332472085,1721218238119,-18261.65070178,0.00019,2]
[332472086,1721218238145,-822.49017547,0.00018598,2]
[332472087,1721218238157,-249.50982453,0.00018598,2]
[332472088,1721218238166,-920.04417549,0.00019,2]
[332472089,1721218238177,-164045.15260063,0.00019,2]
[332472090,1721218238188,-399.70833916,0.00019,2]
[332472091,1721218238199,-603.45575644,0.00019,2]
[332472092,1721218238210,-910.60655848,0.00019,2]
[332472093,1721218238221,-573.2828905,0.00019,2]
[332472120,1721218242056,-369.54465039,0.00017889,2]
[332472121,1721218242066,-192.40825381,0.000188,2]
[332472122,1721218242076,-77.14697614,0.00019,2]
[332472123,1721218242110,-52787.3606105,0.00019,2]
[332472124,1721218242121,-1077.57535404,0.00019,2]
[332472125,1721218242165,-338090.82377787,0.00019,2]
[332472126,1721218242176,-26149.01078257,0.00019,2]
[332472127,1721218242218,-286.14852919,0.00019,2]
[332472182,1721218243022,-363.08090993,0.00018999,2]
[332472185,1721218243034,-552.35244506,0.00019,2]
[332472187,1721218243046,-4330.59626476,0.00019,2]
[332472191,1721218243073,-7160.00000002,0.00019,2]
[332472193,1721218243085,-5966.6050798,0.00019,2]
[332472194,1721218243097,-630.04179428,0.00019,2]
[332472220,1721218245929,-493.706,0.00019,2]
[332472221,1721218245941,-34.294,0.00019,2]
[332472222,1721218245951,-1201.58374031,0.00019,2]
[332472223,1721218245963,-711.38074383,0.00019,2]
[332472224,1721218246036,-445.82218307,0.00019,2]
[332472225,1721218246047,-279.82539136,0.00019,2]
[332472226,1721218246093,-292.775,0.00019,2]
[332472227,1721218246107,-2240.82649544,0.00019,2]
[332472228,1721218246147,-4386.53379957,0.00019,2]
[332472229,1721218246159,-45192.60432892,0.00019,2]
[332472230,1721218246203,-1749.91574108,0.00019,2]
[332472231,1721218246214,-1000.0,0.00019,2]
[332472232,1721218246258,-649.99877428,0.00019,2]
[332472233,1721218246271,-20359.84992364,0.00019,2]
[332472235,1721218373274,3417.0,0.00025,120]
[332472264,1721219170869,1000.0,0.00025,120]
[332472285,1721219413584,15451.9318012,0.00011199,2]
[332472296,1721219432021,-6256.54780837,0.000118,2]
[332472299,1721219432080,-2886.48645114,0.000118,2]
[332472300,1721219432140,-5481.4961455,0.000118,2]
[332472301,1721219432150,-1467.67439724,0.0001259,2]
[332472302,1721219432200,-664.03948097,0.0001259,2]
[332472303,1721219432211,-3364.86830082,0.0001259,2]
[332472305,1721219432259,-544.63837191,0.0001259,2]
[332472306,1721219432268,-550.0,0.00013,2]
[332472307,1721219432278,-2445.63545123,0.0001358,2]
[332472308,1721219432287,-8909.44488406,0.00013899,2]
[332472320,1721219438176,-1154.88370424,0.00013899,2]
[332472321,1721219438188,-1057.27437,0.00013899,2]
[332472322,1721219438199,-13870.5914417,0.00013899,2]
[332472323,1721219438209,-1085.90856546,0.00013899,2]
[332472324,1721219438218,-500.0,0.00013999,2]
[332472325,1721219438227,-393.49980096,0.00013999,2]
[332472326,1721219438239,-68498.39108946,0.00013999,2]
[332472327,1721219438254,-337.129035,0.00013999,2]
[332472328,1721219438265,-3320.0,0.00013999,2]
[332472329,1721219438296,-2773.28413778,0.00013999,2]
[332472330,1721219438416,-437.70943335,0.00013999,2]
[332472331,1721219438427,-6699.16051408,0.00013999,2]
[332472332,1721219438437,-157345.99208655,0.00014,2]
[332472333,1721219438449,-253.90437755,0.00014,2]
[332472334,1721219438460,-400.0,0.00014,2]
[332472335,1721219438485,-2272.91680069,0.00014,2]
[332472339,1721219442868,-554.32056,0.0001386,2]
[332472340,1721219442926,-439.67944,0.0001386,2]
[332472341,1721219442935,-1557.32056,0.00014,2]
[332472342,1721219442947,-3245.9,0.00014,2]
[332472343,1721219442959,-3100.09378254,0.00014,2]
[332472360,1721219443386,-282.40762836,0.00014,2]
[332472362,1721219443398,-692.7,0.00014,2]
[332472388,1721219444197,-649.36,0.00014,2]
[332472389,1721219444208,-523.44,0.00014,2]
[332472390,1721219444219,-67945.6313046,0.00014,2]
[332472391,1721219444230,-826.25901472,0.00014,2]
[332472392,1721219444241,-7225.27766168,0.00014,2]
[332472393,1721219444256,-5975.35005171,0.00014,2]
[332472394,1721219444267,-966.54999995,0.00014,2]
[332472410,1721219446129,-21708.48171763,0.00014,2]
[332472411,1721219446140,-358.3707198,0.00014,2]
[332472412,1721219446189,-1412.93673964,0.00014,2]
[332472413,1721219446201,-6504.7836,0.00014,2]
[332472414,1721219446213,-1175.55550787,0.00014,2]
[332472415,1721219446264,-619.76020313,0.00014,2]
[332472416,1721219446325,-4883.9047737,0.00014,2]
[332472417,1721219446337,-704.8,0.00014,2]
[332472418,1721219446386,-3224.0758753,0.00014,2]
[332472419,1721219446450,-640.0536125,0.00014,2]
[332472420,1721219446462,-5584.18381131,0.00014,2]
[332472421,1721219446473,-324.81,0.00014,2]
[332472422,1721219446486,-446.91400263,0.00014,2]
[332472423,1721219446512,-51066.5438173,0.00014,2]
[332472424,1721219446524,-591.5645175,0.00014,2]
[332472425,1721219673329,9529.32711763,0.00011199,2]
[332472426,1721219696301,9245.81170707,0.00011199,2]
[332472436,1721219810588,2000.0,0.00024,60]
[332472437,1721219823198,2000.0,0.00025,120]
[332472439,1721220047683,3375.26665066,0.00011199,2]
[332472440,1721220138425,215.56086787,0.00011199,2]
[332472441,1721220154119,10145.2113211,0.00011199,2]
[332472442,1721220253298,3078.16051854,0.00011199,2]
[332472444,1721220274701,236005.73937395,0.00011199,2]
[332472447,1721220443299,3113.1078427,0.00011199,2]
[332472449,1721220486753,73821.88279928,0.00011199,2]
[332472450,1721220486776,162183.85657467,0.00011199,2]
[332472455,1721220512896,-250.0,0.00011981,2]
[332472457,1721220525735,440.45,0.00011143,2]
[332472459,1721220548778,20346.87145361,0.00011199,2]
[332472460,1721220556183,155.02807292,0.00011199,2]
[332472461,1721220559004,412.24565197,0.00011199,2]
[332472462,1721220561835,181.42614348,0.00011199,2]
[332472463,1721220565017,158.70478125,0.00011199,2]
[332472464,1721220567047,2560.89748746,0.00011199,2]
[332472465,1721220569895,972.82683274,0.00011143,2]
[332472466,1721220571660,348.90717992,0.00011143,2]
[332472467,1721220572245,1368.988251,0.00011143,2]
[332472468,1721220574539,299.7771014,0.00011143,2]
[332472469,1721220580586,7563.44917121,0.00011143,2]
[332472470,1721220589846,1221.83381837,0.00011143,2]
[332472471,1721220591918,155.0,0.00011143,2]
[332472472,1721220593063,155.0,0.00011143,2]
[332472476,1721220597258,290.94871821,0.00011143,2]
[332472477,1721220600324,200.59985668,0.00011143,2]
[332472478,1721220602227,150.0,0.00011143,2]
[332472479,1721220602460,150.0,0.00011143,2]
[332472480,1721220602902,150.0,0.00011143,2]
[332472481,1721220603097,151.55822658,0.00011143,2]
[332472492,1721220632252,-300.0,0.0001198,2]
[332472493,1721220632261,-2226.17838201,0.00011981,2]
[332472494,1721220632355,-14360.86364811,0.00011981,2]
[332472495,1721220632367,-1052.60047608,0.00011981,2]
[332472496,1721220632532,-1947.69,0.00011981,2]
[332472507,1721220638377,-540.65357155,0.00011981,2]
[332472508,1721220638388,-989.09066841,0.00011981,2]
[332472509,1721220638400,-1323.96325384,0.00011981,2]
[332472510,1721220638409,-250.0,0.00012753,2]
[332472511,1721220638419,-50111.07147277,0.00012991,2]
[332472512,1721220638443,-889.085,0.00012991,2]
[332472513,1721220638503,-164045.15260063,0.00012991,2]
[332472514,1721220638619,-10316.8182708,0.00012991,2]
[332472515,1721220638628,-8647.0967292,0.00012991,2]
[332472663,1721220640343,-3851.8480639,0.00012991,2]
[332472664,1721220640355,-1109.0229065,0.00012991,2]
[332472665,1721220640367,-2818.80991683,0.00012991,2]
[332472666,1721220640378,-8226.29238444,0.00012991,2]
[332472667,1721220640477,-5709.93157167,0.00012991,2]
[332472668,1721220640488,-819.45729106,0.00012991,2]
[332472669,1721220640502,-361.40828948,0.00012991,2]
[332472670,1721220640514,-5873.89872731,0.00012991,2]
[332472671,1721220640581,-481.46739441,0.00012991,2]
[332472672,1721220640591,-84.72148672,0.00013,2]
[332472673,1721220640643,-260.85550603,0.00013,2]
[332472674,1721220640655,-71.42300725,0.00013,2]
[332472675,1721220640665,-1984.78330199,0.00013128,2]
[332472676,1721220640674,-420.0,0.00013152,2]
[332472677,1721220640683,-440.45,0.00013407,2]
[332472678,1721220640693,-170.99,0.00013448,2]
[332472679,1721220640703,-250.0,0.0001345,2]
[332472680,1721220640714,-1975.11,0.00013472,2]
[332472681,1721220640723,-491.87,0.00013493,2]
[332472682,1721220640732,-3637.71191736,0.00013506,2]
[332472683,1721220640744,-2695.55828236,0.00013506,2]
[332472684,1721220640755,-347.04941212,0.00013506,2]
[332472685,1721220640766,-880.34744545,0.00013506,2]
[332472686,1721220640775,-1091.78375652,0.00013506,2]
[332472688,1721220640785,-560.59435567,0.00013506,2]
[332472690,1721220640794,-181.42614348,0.00013506,2]
[332472692,1721220640803,-155.13204837,0.00013506,2]
[332472693,1721220640812,-499.99,0.00013516,2]
[332472694,1721220640821,-1538.26608865,0.00013516,2]
[332472695,1721220640831,-164.03533166,0.00013543,2]
[332472696,1721220640840,-317.83124209,0.00013571,2]
[332472698,1721220640849,-12466.23053328,0.00013574,2]
[332472700,1721220640859,-12466.23053328,0.00013574,2]
[332472702,1721220640868,-6892.72292299,0.00013574,2]
[332472704,1721220640879,-53696.38772876,0.00013574,2]
[332472848,1721220642253,412.09438307,0.00011143,2]
[332472889,1721220643465,-5032.19591116,0.00013574,2]
[332472890,1721220643479,-6880.20958242,0.00013574,2]
[332472891,1721220643632,-2051.96602235,0.00013574,2]
[332472892,1721220643690,-32807.80304214,0.00013574,2]
[332472943,1721220646640,-7111.50959055,0.00013574,2]
[332472944,1721220646650,-150.0,0.00013671,2]
[332472945,1721220646659,-27489.47,0.00013671,2]
[332472946,1721220646668,-372.32,0.00013699,2]
[332472947,1721220646677,-250.0,0.00013699,2]
[332472948,1721220646687,-2803.51297564,0.0001379,2]
[332472949,1721220646696,-419.00943635,0.00013791,2]
[332472950,1721220646707,-299.99,0.00013804,2]
[332472951,1721220646716,-765.65264422,0.00013849,2]
[332472952,1721220646727,-685.95496828,0.00013889,2]
[332472953,1721220646737,-1270.33888582,0.0001389,2]
[332472954,1721220646746,-31564.4208,0.00013895,2]
[332472955,1721220646755,-3028.0524,0.000139,2]
[332472956,1721220646765,-163.93512621,0.000139,2]
[332472957,1721220646774,-1000.0,0.00013973,5]
[332472958,1721220646784,-273.09054927,0.0001399,2]
[332472959,1721220646794,-8376.40953891,0.00013997,2]
[332472960,1721220646804,-500.0,0.00013999,2]
[332472961,1721220646813,-500.0,0.00013999,2]
[332472962,1721220646823,-539.39426506,0.00013999,2]
[332472963,1721220646832,-500.0,0.00013999,2]
[332472964,1721220646841,-167.60086517,0.00013999,2]
[332472965,1721220646850,-301.94630084,0.00013999,2]
[332472966,1721220646861,-492.55741441,0.00013999,2]
[332472967,1721220646871,-772885.2023115,0.00014,2]
[332472968,1721220646882,-6496.9,0.00014,2]
[332472969,1721220646893,-1249.7013,0.00014,2]
[332472970,1721220646904,-606.83653689,0.00014,2]
[332472973,1721220651653,250.0,0.00013,2]
[332472974,1721220866345,691.88678279,0.00011199,2]
[332472975,1721220900850,181.3250397,0.00011199,2]
[332472976,1721220925665,281.8210833,0.00011199,4]
[332472980,1721220961767,174.13426505,0.00011199,2]
[332472982,1721221003289,1260.59025042,0.00011199,2]
[332472984,1721221029097,294.90841273,0.00011199,2]
[332472985,1721221064761,434.67,0.00011057,2]
[332472991,1721221135920,561.10372162,0.00011199,2]
[332472992,1721221198959,14082.99531039,0.00011199,2]
[332472995,1721221237871,10528.28293915,0.00011199,2]
[332472996,1721221341947,617.04418814,0.00011199,2]
[332472997,1721221371253,155.0,0.00011199,2]
[332472998,1721221377514,9464.05,0.00011199,2]
[332472999,1721221557288,1368.988251,0.00011199,2]
[332473001,1721221581990,442.29,0.00010723,2]
[332473003,1721221598744,448.71426765,0.00011199,2]
[332473004,1721221646793,835.10289931,0.00010723,2]
[332473005,1721221663989,8880.78392087,0.00011199,2]
[332473007,1721221722098,1984.78330199,0.00011199,2]
[332473008,1721221729755,412.54152439,0.00011199,2]
[332473018,1721221759931,617.04418814,0.00011199,2]
[332473065,1721221832070,-781.95019923,0.00011881,2]
[332473066,1721221832082,-1169.10003872,0.00011881,2]
[332473067,1721221832091,-250.0,0.00011981,2]
[332473068,1721221832100,-250.0,0.00011981,2]
[332473069,1721221832110,-155.0,0.00012273,2]
[332473070,1721221832119,-155.0,0.00012273,2]
[332473071,1721221832128,-151.34981416,0.00012302,2]
[332473072,1721221832139,-7.46838859,0.00012302,2]
[332473073,1721221832148,-178.41640975,0.00012314,2]
[332473074,1721221832157,-250.0,0.00012577,2]
[332473075,1721221832167,-391.25232451,0.00012595,2]
[332473076,1721221832184,-202.24767549,0.00012595,2]
[332473077,1721221832193,-161.39,0.00012831,2]
[332473078,1721221832202,-161.39,0.00012847,2]
[332473079,1721221832213,-161.39,0.00012863,2]
[332473080,1721221832222,-300.0,0.00012878,2]
[332473081,1721221832231,-3133.07,0.00012879,2]
[332473082,1721221832240,-161.39,0.00012879,2]
[332473083,1721221832250,-1838.7809,0.00012891,2]
[332473084,1721221832259,-499.99,0.00012895,2]
[332473085,1721221832268,-161.39,0.00012895,2]
[332473086,1721221832277,-291.46,0.00012913,2]
[332473087,1721221832286,-442.29,0.00012987,2]
[332473088,1721221832295,-300.0,0.00013,2]
[332473089,1721221832304,-155.0,0.00013128,2]
[332473090,1721221832313,-155.0,0.00013128,2]
[332473091,1721221832325,-178.21,0.00013217,2]
[332473092,1721221832334,-6401.36824972,0.00013574,2]
[332473093,1721221832343,-1702.85975548,0.00013574,2]
[332473094,1721221832352,-617.04418814,0.00013574,2]
[332473095,1721221832361,-3081.83284468,0.00013584,2]
[332473096,1721221832372,-271.2999999,0.00013584,2]
[332473097,1721221832383,-16284.86715542,0.00013584,2]
[332473098,1721221832393,-150.0,0.00013698,2]
[332473099,1721221832402,-174.94,0.00013699,2]
[332473100,1721221832411,-1878.95,0.00013699,2]
[332473101,1721221832420,-345.6,0.00013699,2]
[332473102,1721221832429,-349.54,0.00013699,2]
[332473103,1721221832438,-250.0,0.00013699,2]
[332473104,1721221832447,-1464.4626,0.000138,2]
[332473105,1721221832459,-2523.16167804,0.000138,2]
[332473106,1721221832468,-419.00943635,0.00013802,2]
[332473107,1721221832478,-250.0,0.00013802,2]
[332473108,1721221832487,-227.39291056,0.00013849,2]
[332473109,1721221832497,-416.66667,0.0001386,2]
[332473110,1721221832507,-416.66667,0.0001386,2]
[332473111,1721221832520,-416.66666,0.0001386,2]
[332473112,1721221832530,-416.66666,0.0001386,2]
[332473113,1721221832540,-500.0,0.0001388,2]
[332473114,1721221832551,-220.51,0.0001389,3]
[332473115,1721221832560,-1143.30499722,0.00013897,2]
[332473116,1721221832569,-79965.7916,0.000139,2]
[332473117,1721221832579,-1280.7117,0.000139,2]
[332473118,1721221832589,-10023.6389,0.000139,2]
[332473119,1721221832600,-300.4797429,0.000139,2]
[332473120,1721221832610,-293.88982608,0.000139,2]
[332473121,1721221832619,-203.97728596,0.000139,2]
[332473122,1721221832628,-318.18274506,0.000139,2]
[332473123,1721221832638,-500.0,0.0001396,2]
[332473124,1721221832647,-1920.4044,0.00013973,2]
[332473125,1721221832656,-1000.0,0.00013973,5]
[332473126,1721221832666,-210.77020957,0.0001399,2]
[332473127,1721221832675,-1067.68442442,0.00013997,2]
[332473128,1721221832685,-251014.42075445,0.00014,2]
[332473129,1721221832697,-674.0,0.00014,2]
[332473130,1721221832711,-699.77129228,0.00014,2]
[332473131,1721221832723,-600.0,0.00014,2]
[332473132,1721221832734,-91252.03312399,0.00014,2]
[332473133,1721221832745,-264.78577028,0.00014,2]
[332473134,1721221832756,-941.26867698,0.00014,2]
[332473135,1721221832767,-341.42630098,0.00014,2]
[332473136,1721221832779,-315.04,0.00014,2]
[332473137,1721221832790,-821.72,0.00014,2]
[332473138,1721221832805,-418.90217464,0.00014,2]
[332473139,1721221837226,155.0,0.00011199,2]
[332473152,1721221837534,-1034.15196655,0.00014,2]
[332473153,1721221837545,-408255.34048042,0.00014,2]
[332473154,1721221837595,-264783.97045432,0.00014,2]
[332473155,1721221837606,-175.0,0.00014,2]
[332473156,1721221837616,-2000.0,0.00014,2]
[332473157,1721221837625,-200.0,0.00014,2]
[332473158,1721221837635,-416.66667,0.00014,2]
[332473159,1721221837644,-416.66667,0.00014,2]
[332473160,1721221837654,-500.0,0.00014,2]
[332473161,1721221837663,-500.0,0.00014,2]
[332473162,1721221837672,-500.0,0.0001403,2]
[332473163,1721221837682,-12694.9265742,0.00014079,2]
[332473164,1721221837691,-1410.5336224,0.00014079,2]
[332473165,1721221837701,-9151.8057298,0.00014089,2]
[332473166,1721221837712,-500.0,0.0001411,2]
[332473167,1721221837722,-420.0,0.00014125,2]
[332473168,1721221837732,-2000.0,0.0001414,2]
[332473169,1721221837741,-200.0,0.0001414,2]
[332473170,1721221837750,-593.5,0.0001417,2]
[332473171,1721221837760,-2000.0,0.00014281,2]
[332473172,1721221837770,-200.0,0.00014281,2]
[332473173,1721221837779,-1991.49614662,0.00014424,2]
[332473174,1721221837789,-291.46,0.00014527,2]
[332473175,1721221837799,-355.89480814,0.00014997,2]
[332473176,1721221837809,-345325.99661515,0.00015,2]
[332473177,1721221837821,-5243.22356511,0.00015,2]
[332473178,1721221837832,-5934.62646252,0.00015,2]
[332473179,1721221837844,-7072.08,0.00015,2]
[332473180,1721221837863,-1876.43931272,0.00015,2]
[332473181,1721221837874,-816.70025,0.00015,2]
[332473182,1721221837886,-2035.95121819,0.00015,2]
[332473183,1721221837897,-600.0,0.00015,2]
[332473184,1721221837907,-1007.65404968,0.00015,2]
[332473185,1721221837918,-1004.97146097,0.00015,2]
[332473186,1721221837928,-1150.00320399,0.00015033,2]
[332473187,1721221837939,-531.79482725,0.00015033,2]
[332473188,1721221837950,-652.16989619,0.00015033,2]
[332473189,1721221837969,-189.19375057,0.00015033,2]
[332473190,1721221837979,-228.65112144,0.0001512,2]
[332473271,1721221839536,-914.65387575,0.0001512,2]
[332473273,1721221839546,-170.99,0.00015129,2]
[332473275,1721221839558,-198.31391135,0.0001515,2]
[332473282,1721221839649,-102.16583154,0.0001515,2]
[332473283,1721221839659,-941.05382444,0.000152,2]
[332473284,1721221839708,-522.77982189,0.000152,2]
[332473285,1721221839878,-676.47483956,0.000152,2]
[332473286,1721221839938,-217.69151411,0.000152,2]
[332473287,1721221839948,-442.29,0.00015251,2]
[332473288,1721221839957,-293.88982602,0.00015443,2]
[332473289,1721221839968,-587.0,0.00015492,2]
[332473290,1721221839977,-593.5,0.00015744,2]
[332473291,1721221839987,-302.13239031,0.00015757,2]
[332473292,1721221839996,-685.67412696,0.00015757,2]
[332473293,1721221840006,-1755.7720924,0.00016,2]
[332473294,1721221840018,-565.68000041,0.00016,2]
[332473295,1721221840029,-539.71566269,0.00016,2]
[332473296,1721221840040,-866.74999999,0.00016,2]
[332473297,1721221840060,-740.38362115,0.00016,2]
[332473298,1721221840069,-700.0,0.00016,2]
[332473299,1721221840080,-355.44,0.00016116,2]
[332473300,1721221840090,-355.44,0.00016116,2]
[332473301,1721221840100,-291.46,0.00016142,2]
[332473302,1721221840109,-2523.161678,0.00016267,2]
[332473303,1721221840119,-1143.30499719,0.00016342,2]
[332473305,1721221840128,-300.47974289,0.000164,2]
[332473307,1721221840138,-174.94,0.00016438,2]
[332473310,1721221840147,-450.0,0.000166,2]
[332473312,1721221840156,-318.18274505,0.0001665,2]
[332473313,1721221840166,-1500.0,0.000167,2]
[332473316,1721221840175,-170.99,0.0001681,2]
[332473317,1721221840185,-354.99,0.00016938,2]
[332473319,1721221840194,-529.36,0.00016938,2]
[332473321,1721221840203,-529.36,0.00016938,2]
[332473323,1721221840212,-529.36,0.00016938,2]
[332473325,1721221840221,-529.36,0.00016938,2]
[332473327,1721221840230,-529.36,0.00016938,2]
[332473329,1721221840240,-1066.16,0.00016938,2]
[332473331,1721221840249,-293.88982602,0.00016986,2]
[332473333,1721221840258,-823.0,0.00016992,2]
[332473335,1721221840267,-650.0,0.00017,2]
[332473337,1721221840276,-2498.02656989,0.00017199,2]
[332473339,1721221840285,-356.0,0.000172,2]
[332473341,1721221840295,-1000.0,0.000172,2]
[332473343,1721221840304,-593.5,0.00017319,2]
[332473344,1721221840313,-2523.161678,0.000175,2]
[332473346,1721221840326,-92.92372367,0.00017515,2]
[332473631,1721221843170,-559.3204607,0.00012273,2]
[332473633,1721221843181,-6104.47544561,0.00012273,2]
[332473635,1721221843193,-325.17831369,0.00012273,2]
[332473637,1721221843202,-349.36627633,0.00017515,2]
[332473639,1721221843211,-551.26492363,0.00017527,2]
[332473641,1721221843224,-362.07437022,0.00017527,2]
[332473643,1721221843234,-372.985,0.00017527,2]
[332473646,1721221843245,-498.7999998,0.00017527,2]
[332473648,1721221843257,-549.42890666,0.00017527,2]
[332473650,1721221843267,-1143.30499719,0.00017565,2]
[332473652,1721221843277,-155.0,0.00017599,2]
[332473654,1721221843286,-300.47974289,0.0001765,2]
[332473656,1721221843295,-291.46,0.00017756,2]
[332473658,1721221843305,-244.0,0.000178,2]
[332473660,1721221843315,-1521.0,0.000178,2]
[332473662,1721221843326,-300.0,0.00017803,2]
[332473664,1721221843336,-145.32635326,0.00017803,2]
[332473666,1721221843348,-4.67364674,0.00017803,2]